bitfinex/quotes_BTCUSD_20241003
["timestamp","ask_amount","ask_price","bid_price","bid_amount"]
[1727978094983,0.000816,60783.0,60782.0,0.42735844]
[1727978095223,0.000816,60783.0,60782.0,0.42935844]
[1727978095459,0.000816,60783.0,60782.0,0.38070871]
[1727978096225,0.000816,60783.0,60782.0,0.37870871]
[1727978096702,0.000816,60783.0,60782.0,0.38070871]
[1727978098180,0.000816,60783.0,60782.0,0.37870871]
[1727978102278,0.000818,60796.0,60783.0,0.002]
[1727978102491,0.000818,60796.0,60795.0,0.164487]
[1727978102964,0.000818,60796.0,60795.0,0.16777633]
[1727978104169,0.000818,60796.0,60795.0,0.27577633]
[1727978104632,0.000818,60796.0,60795.0,0.43896304]
[1727978104875,0.000818,60796.0,60795.0,0.43567371]
[1727978105618,0.000818,60796.0,60795.0,0.44467371]
[1727978106062,0.000818,60796.0,60795.0,0.44267371]
[1727978107704,0.000818,60796.0,60795.0,0.46567371]
[1727978108648,0.000818,60796.0,60795.0,0.47091467]
[1727978109121,0.000818,60796.0,60795.0,0.47291467]
[1727978109386,0.000818,60796.0,60795.0,0.47791467]
[1727978110375,0.000818,60796.0,60795.0,0.47591467]
[1727978111330,0.000818,60796.0,60795.0,0.47791467]
[1727978112541,0.0001,60808.0,60807.0,0.442254]
[1727978112758,0.0001,60808.0,60807.0,0.62844071]
[1727978113671,0.0001,60808.0,60807.0,0.64244071]
[1727978114329,0.0001,60808.0,60807.0,0.56414071]
[1727978115200,0.0001,60808.0,60807.0,0.57814071]
[1727978116116,0.24668821,60825.0,60818.0,0.164425]
[1727978116358,0.24668821,60825.0,60818.0,0.35061171]
[1727978116815,0.24668821,60825.0,60818.0,0.32761171]
[1727978117035,0.33858821,60825.0,60818.0,0.164425]
[1727978117266,0.0919,60825.0,60818.0,0.171425]
[1727978117510,0.0759,60819.0,60818.0,0.171425]
[1727978118234,0.0759,60819.0,60818.0,0.013]
[1727978118460,0.0759,60819.0,60818.0,0.006]
[1727978118912,0.240322,60819.0,60818.0,0.006]
[1727978119149,0.240322,60819.0,60818.0,0.009]
[1727978119150,0.0759,60819.0,60818.0,0.009]
[1727978119388,0.0759,60819.0,60818.0,0.006]
[1727978119636,0.0759,60819.0,60818.0,0.013]
[1727978119880,0.0759,60819.0,60817.0,0.164426]
[1727978120101,0.0759,60819.0,60818.0,0.004]
[1727978120572,0.0759,60819.0,60809.0,0.493343]
[1727978120573,0.164436,60814.0,60809.0,0.493343]
[1727978120829,0.164441,60812.0,60809.0,0.164447]
[1727978121073,0.164438,60813.0,60810.0,0.164446]
[1727978121384,0.328869,60815.0,60809.0,0.164448]
[1727978121385,0.164442,60812.0,60809.0,0.164448]
[1727978121634,0.164438,60813.0,60809.0,0.164448]
[1727978122150,0.404748,60819.0,60804.0,0.52235342]
[1727978122151,0.24668821,60814.0,60804.0,0.18807273]
[1727978122402,0.0759,60819.0,60804.0,0.24668821]
[1727978122403,0.164457,60807.0,60804.0,0.24668821]
[1727978122643,0.164455,60807.0,60804.0,0.24668821]
[1727978123096,0.328904,60808.0,60803.0,0.164464]
[1727978123097,0.164457,60806.0,60803.0,0.164464]
[1727978123347,0.328904,60808.0,60801.0,0.32894]
[1727978123348,0.328897,60810.0,60802.0,0.24668821]
[1727978123572,0.328897,60810.0,60801.0,0.328939]
[1727978123573,0.328888,60811.0,60806.0,0.164456]
[1727978123807,0.16445,60809.0,60805.0,0.164457]
[1727978124264,0.164447,60810.0,60805.0,0.164459]
[1727978124488,0.164452,60808.0,60804.0,0.002]
[1727978124725,0.164452,60808.0,60804.0,0.166461]
[1727978124950,0.164452,60808.0,60803.0,0.328928]
[1727978124951,0.02577804,60812.0,60802.0,0.24668821]
[1727978125214,0.02577804,60812.0,60809.0,0.35252073]
[1727978125443,0.02577804,60812.0,60809.0,0.18807273]
[1727978125656,0.164445,60811.0,60809.0,0.18807273]
[1727978125884,0.410377,60813.0,60807.0,0.164452]
[1727978126107,0.164444,60811.0,60807.0,0.164452]
[1727978126326,0.164444,60811.0,60807.0,0.164454]
[1727978126586,0.328884,60812.0,60805.0,0.164459]
[1727978126807,0.16445,60809.0,60805.0,0.164459]
[1727978127285,0.164458,60806.0,60803.0,0.32765171]
[1727978127501,0.164456,60807.0,60803.0,0.32765171]
[1727978127708,0.328895,60810.0,60804.0,0.164462]
[1727978127924,0.164452,60808.0,60803.0,0.32765171]
[1727978128158,0.0815,60813.0,60800.0,0.51701473]
[1727978128159,0.164465,60804.0,60800.0,0.35254573]
[1727978128377,0.328925,60805.0,60801.0,0.24668821]
[1727978128608,0.328925,60805.0,60797.0,0.328963]
[1727978128839,0.328928,60804.0,60799.0,0.164475]
[1727978129112,0.164464,60804.0,60803.0,0.001]
[1727978129337,0.02577962,60804.0,60797.0,0.328959]
[1727978129577,0.32891,60807.0,60798.0,0.328957]
[1727978129802,0.164459,60806.0,60801.0,0.004]
[1727978130044,0.18596717,60813.0,60796.0,0.18807273]
[1727978130316,0.328956,60799.0,60793.0,0.24668821]
[1727978130546,0.0815,60800.0,60794.0,0.24668821]
[1727978130766,0.328964,60797.0,60794.0,0.24668821]
[1727978130995,0.0815,60800.0,60794.0,0.24668821]
[1727978130996,0.164485,60796.0,60794.0,0.24668821]
[1727978131249,0.493438,60798.0,60797.0,0.003]
[1727978131687,0.328977,60795.0,60790.0,0.24668821]
[1727978131927,0.164493,60793.0,60790.0,0.24668821]
[1727978132066,0.328986,60793.0,60790.0,0.24668821]
[1727978132286,0.328977,60795.0,60790.0,0.1645]
[1727978132506,0.164482,60797.0,60793.0,0.16449]
[1727978132710,0.02578353,60794.0,60793.0,0.164492]
[1727978134655,0.02578353,60794.0,60793.0,0.165492]
[1727978135030,0.02578353,60794.0,60793.0,0.33367871]
[1727978135250,0.47,60812.0,60806.0,0.164457]
[1727978135251,0.0765,60811.0,60806.0,0.164457]
[1727978135699,0.0765,60811.0,60805.0,0.18807273]
[1727978135921,0.41112321,60814.0,60810.0,0.164446]
[1727978136149,0.0102,60839.0,60795.0,0.24668821]
[1727978136150,0.16442,60820.0,60811.0,0.18807273]
[1727978136392,0.165441,60819.0,60815.0,0.18807273]
[1727978136617,0.165441,60819.0,60816.0,0.164429]
[1727978136618,0.001018,60819.0,60816.0,0.164429]
[1727978136889,0.001018,60819.0,60815.0,0.18807273]
[1727978136890,0.001018,60819.0,60818.0,0.164425]
[1727978138689,0.02679105,60819.0,60818.0,0.164425]
[1727978138947,0.02679105,60819.0,60818.0,0.168425]
[1727978139201,0.02679105,60819.0,60818.0,0.164425]
[1727978139440,0.02679105,60819.0,60818.0,0.007]
[1727978139662,0.19121305,60819.0,60818.0,0.007]
[1727978140999,0.19121305,60819.0,60818.0,0.004]
[1727978141000,0.27251305,60819.0,60818.0,0.004]
[1727978141005,0.21093579,60819.0,60804.0,0.164461]
[1727978141227,0.164438,60813.0,60812.0,0.24668821]
[1727978141453,0.328867,60815.0,60809.0,0.24668821]
[1727978141687,0.164446,60810.0,60809.0,0.24668821]
[1727978141918,0.164455,60807.0,60803.0,0.164464]
[1727978142154,0.04732818,60817.0,60802.0,0.24668821]
[1727978142382,0.164458,60806.0,60802.0,0.24668821]
[1727978142622,0.39807789,60817.0,60793.0,0.330617]
[1727978142623,0.0799,60815.0,60809.0,0.002]
[1727978142857,0.164446,60810.0,60809.0,0.002]
[1727978143090,0.164446,60810.0,60809.0,0.001]
[1727978143331,0.340946,60810.0,60809.0,0.001]
[1727978143804,0.1765,60810.0,60803.0,0.24668821]
[1727978144039,0.164462,60804.0,60803.0,0.24668821]
[1727978144517,0.164465,60803.0,60802.0,0.001]
[1727978145264,0.328927,60804.0,60795.0,0.57565821]
[1727978145504,0.35467849,60809.0,60799.0,0.164476]
[1727978145505,0.328916,60806.0,60799.0,0.164476]
[1727978145747,0.3289,60809.0,60797.0,0.18807273]
[1727978145975,0.02577993,60805.0,60803.0,0.165465]
[1727978146209,0.328921,60805.0,60803.0,0.001]
[1727978146455,0.164462,60804.0,60803.0,0.001]
[1727978147195,0.328908,60808.0,60803.0,0.001]
[1727978147423,0.164461,60805.0,60802.0,0.001]
[1727978147892,0.164461,60805.0,60801.0,0.16447]
[1727978148139,0.164461,60805.0,60803.0,0.003]
[1727978148390,0.328915,60806.0,60803.0,0.003]
[1727978148391,0.164462,60804.0,60803.0,0.007]
[1727978148842,0.65783,60806.0,60793.0,0.001636]
[1727978148843,0.328946,60801.0,60793.0,0.001636]
[1727978148846,0.164479,60798.0,60794.0,0.164488]
[1727978149072,0.164477,60799.0,60797.0,0.24668821]
[1727978149301,0.32895,60800.0,60794.0,0.164488]
[1727978149536,0.0973,60806.0,60793.0,0.001636]
[1727978149537,0.02578268,60798.0,60793.0,0.001636]
[1727978149788,0.164488,60795.0,60793.0,0.001636]
[1727978150031,0.164482,60797.0,60793.0,0.166128]
[1727978150264,0.164485,60796.0,60793.0,0.166128]
[1727978150545,0.35474268,60798.0,60793.0,0.166128]
[1727978150546,0.164481,60798.0,60794.0,0.164487]
[1727978150799,0.164474,60800.0,60796.0,0.164482]
[1727978151055,0.164474,60800.0,60794.0,0.328975]
[1727978151056,0.164474,60800.0,60797.0,0.164481]
[1727978151293,0.328933,60803.0,60797.0,0.32896]
[1727978151536,0.328933,60803.0,60795.0,0.32897]
[1727978151769,0.164476,60800.0,60796.0,0.164484]
[1727978152257,0.164476,60800.0,60797.0,0.004]
[1727978152518,0.328933,60803.0,60798.0,0.164476]
[1727978152758,0.164468,60802.0,60798.0,0.164476]
[1727978152988,0.328933,60803.0,60797.0,0.009]
[1727978153225,0.000818,60808.0,60797.0,0.009]
[1727978153457,0.164478,60799.0,60795.0,0.493455]
[1727978153697,0.164478,60799.0,60796.0,0.164483]
[1727978153936,0.35469758,60806.0,60798.0,0.328956]
[1727978153937,0.164466,60803.0,60798.0,0.328956]
[1727978154170,0.164466,60803.0,60800.0,0.164473]
[1727978154423,0.164465,60803.0,60799.0,0.164474]
[1727978154652,0.328922,60805.0,60799.0,0.164474]
[1727978154871,0.164468,60802.0,60799.0,0.164474]
[1727978155117,0.328922,60805.0,60800.0,0.164471]
[1727978155347,0.164467,60803.0,60800.0,0.165471]
[1727978155814,0.164467,60803.0,60800.0,0.001]
[1727978156772,0.24457,60801.0,60800.0,0.001]
[1727978157006,0.24457,60801.0,60793.0,0.001636]
[1727978157007,0.164489,60794.0,60793.0,0.001636]
[1727978158418,0.164489,60794.0,60793.0,0.003636]
[1727978158849,0.164489,60794.0,60793.0,0.004636]
[1727978159330,0.164489,60794.0,60793.0,0.002636]
[1727978159331,0.34581452,60794.0,60793.0,0.002636]
[1727978159558,0.37160133,60794.0,60793.0,0.002636]
[1727978160349,0.37160133,60794.0,60793.0,0.001636]
[1727978160454,0.37160133,60794.0,60793.0,0.002636]
[1727978160455,0.37660133,60794.0,60793.0,0.002636]
[1727978160694,0.26537581,60794.0,60793.0,0.001636]
[1727978160930,0.19027581,60794.0,60793.0,0.001636]
[1727978161164,0.19027581,60794.0,60793.0,0.003636]
[1727978161165,0.19527581,60794.0,60793.0,0.003636]
[1727978163585,0.59591931,60794.0,60793.0,0.003636]
[1727978163818,0.56880133,60794.0,60793.0,0.003636]
[1727978165977,0.37147581,60794.0,60793.0,0.003636]
[1727978166226,0.29527581,60794.0,60793.0,0.003636]
[1727978167889,0.40150133,60794.0,60793.0,0.003636]
[1727978168118,0.37571452,60794.0,60793.0,0.003636]
[1727978168592,0.37571452,60794.0,60793.0,0.002636]
[1727978169051,0.45241452,60794.0,60793.0,0.002636]
[1727978169785,0.45241452,60794.0,60793.0,0.003636]
[1727978170261,0.45241452,60794.0,60793.0,0.002636]
[1727978170522,0.45241452,60794.0,60793.0,0.003636]
[1727978170523,0.67425975,60794.0,60793.0,0.003636]
[1727978170755,0.67525975,60794.0,60793.0,0.003636]
[1727978170995,0.67525975,60794.0,60784.0,0.24668821]
[1727978170996,0.164514,60785.0,60784.0,0.24668821]
[1727978171251,0.56003001,60785.0,60784.0,0.25426052]
[1727978171514,0.56003001,60785.0,60784.0,0.00757231]
[1727978171749,0.70818779,60785.0,60784.0,0.00757231]
[1727978171995,0.85485967,60785.0,60784.0,0.00757231]
[1727978172247,0.85685967,60785.0,60784.0,0.00757231]
[1727978172507,0.85685967,60785.0,60759.0,0.24668821]
[1727978172508,0.002,60775.0,60759.0,0.24668821]
[1727978172748,0.45262473,60771.0,60759.0,0.24668821]
[1727978173482,0.264552,60771.0,60759.0,0.24668821]
[1727978173952,0.264552,60771.0,60770.0,0.003632]
[1727978173953,0.276552,60771.0,60770.0,0.003632]
[1727978174175,0.276552,60771.0,60770.0,0.002632]
[1727978174442,0.276552,60771.0,60770.0,0.001632]
[1727978174675,0.303552,60771.0,60770.0,0.002632]
[1727978174911,0.277552,60771.0,60770.0,0.002632]
[1727978175411,0.40089031,60771.0,60770.0,0.002632]
[1727978175952,0.57376485,60771.0,60770.0,0.002632]
[1727978176687,0.31734971,60771.0,60770.0,0.002632]
[1727978176937,0.31734971,60771.0,60770.0,0.19070473]
[1727978176938,0.191552,60771.0,60770.0,0.19070473]
[1727978177186,0.191552,60771.0,60770.0,0.002632]
[1727978177663,0.164552,60771.0,60770.0,0.001632]
[1727978177899,0.293735,60771.0,60770.0,0.002632]
[1727978178155,0.293735,60771.0,60770.0,0.001632]
[1727978178156,0.38907331,60771.0,60770.0,0.001632]
[1727978178654,0.39507331,60771.0,60770.0,0.002632]
[1727978179127,0.40407331,60771.0,60770.0,0.003632]
[1727978179665,0.40407331,60771.0,60770.0,0.001632]
[1727978179666,0.56877331,60771.0,60770.0,0.001632]
[1727978179907,0.56877331,60771.0,60770.0,0.003632]
[1727978179908,0.59177331,60771.0,60770.0,0.003632]
[1727978180159,0.61757213,60771.0,60770.0,0.003632]
[1727978180404,0.59657213,60771.0,60770.0,0.001632]
[1727978180637,0.70347213,60771.0,60770.0,0.002632]
[1727978180860,0.68847213,60771.0,60770.0,0.001632]
[1727978181123,0.68847213,60771.0,60770.0,0.002632]
[1727978181124,0.70347213,60771.0,60770.0,0.002632]
[1727978181357,0.68367331,60771.0,60770.0,0.002632]
[1727978181592,0.68567331,60771.0,60770.0,0.002632]
[1727978181835,0.48759031,60771.0,60770.0,0.003632]
[1727978182546,0.47959031,60771.0,60770.0,0.002632]
[1727978182805,0.48859031,60771.0,60770.0,0.003632]
[1727978183036,0.61237714,60771.0,60770.0,0.002632]
[1727978183285,0.61737714,60771.0,60770.0,0.002632]
[1727978183515,0.61037714,60771.0,60770.0,0.002632]
[1727978183758,0.61237714,60771.0,60770.0,0.002632]
[1727978183948,0.61637714,60771.0,60770.0,0.002632]
[1727978184187,0.60337714,60771.0,60770.0,0.001632]
[1727978184450,0.61237714,60771.0,60770.0,0.002632]
[1727978184683,0.62537714,60771.0,60770.0,0.003632]
[1727978184923,0.62537714,60771.0,60770.0,0.002632]
[1727978185644,0.64217715,60771.0,60770.0,0.001632]
[1727978185884,0.62237714,60771.0,60770.0,0.002632]
[1727978186115,0.62437714,60771.0,60770.0,0.002632]
[1727978186353,0.63637714,60771.0,60770.0,0.003632]
[1727978188286,0.73007714,60771.0,60770.0,0.003632]
[1727978188825,0.75587841,60771.0,60770.0,0.003632]
[1727978189071,0.74787841,60771.0,60770.0,0.002632]
[1727978189305,0.73087841,60771.0,60770.0,0.002632]
[1727978189564,0.75387841,60771.0,60770.0,0.002632]
[1727978189795,0.76787841,60771.0,60770.0,0.002632]
[1727978190021,0.80518619,60771.0,60770.0,0.001632]
[1727978190283,0.78187841,60771.0,60770.0,0.002632]
[1727978190524,0.63409158,60771.0,60770.0,0.002632]
[1727978190767,0.61109158,60771.0,60770.0,0.002632]
[1727978191014,0.58109158,60771.0,60770.0,0.002632]
[1727978191263,0.58309158,60771.0,60770.0,0.002632]
[1727978191508,0.59709158,60771.0,60770.0,0.002632]
[1727978191751,0.75227829,60771.0,60770.0,0.001632]
[1727978192012,0.76627829,60771.0,60770.0,0.001632]
[1727978192485,0.73827829,60771.0,60770.0,0.001632]
[1727978192727,0.75227829,60771.0,60770.0,0.001632]
[1727978192957,0.74047702,60771.0,60770.0,0.001632]
[1727978193460,0.64477702,60771.0,60770.0,0.001632]
[1727978193698,0.48159031,60771.0,60770.0,0.001632]
[1727978193940,0.48359031,60771.0,60770.0,0.001632]
[1727978196182,0.50939205,60771.0,60770.0,0.001632]
[1727978196669,0.53239205,60771.0,60770.0,0.001632]
[1727978196895,0.69557876,60771.0,60770.0,0.001632]
[1727978197100,0.66977702,60771.0,60770.0,0.001632]
[1727978198522,0.48159031,60771.0,60770.0,0.001632]
[1727978198881,0.40189031,60771.0,60770.0,0.001632]
[1727978201046,0.50739031,60771.0,60770.0,0.001632]
[1727978204182,0.53319249,60771.0,60770.0,0.001632]
[1727978204634,0.50739031,60771.0,60770.0,0.001632]
[1727978204874,0.65657702,60771.0,60770.0,0.001632]
[1727978205130,0.67057702,60771.0,60770.0,0.001632]
[1727978205584,0.46839031,60771.0,60770.0,0.001632]
[1727978205813,0.45639031,60771.0,60770.0,0.001632]
[1727978206059,0.48439031,60771.0,60770.0,0.001632]
[1727978206293,0.47039031,60771.0,60770.0,0.001632]
[1727978206542,0.46839031,60771.0,60770.0,0.001632]
[1727978206782,0.48239031,60771.0,60770.0,0.001632]
[1727978207015,0.64557702,60771.0,60770.0,0.001632]
[1727978207253,0.64757702,60771.0,60770.0,0.001632]
[1727978207490,0.69490193,60771.0,60770.0,0.001632]
[1727978207734,0.7187036,60771.0,60770.0,0.001632]
[1727978208239,0.7207036,60771.0,60770.0,0.001632]
[1727978209175,0.47501689,60771.0,60770.0,0.001632]
[1727978210584,0.47701689,60771.0,60770.0,0.001632]
[1727978211054,0.47501689,60771.0,60770.0,0.001632]
[1727978212036,0.44921522,60771.0,60770.0,0.001632]
[1727978213444,0.45121522,60771.0,60770.0,0.001632]
[1727978213694,0.61440193,60771.0,60770.0,0.001632]
[1727978214141,0.68819114,60771.0,60770.0,0.001632]
[1727978214389,0.71278754,60771.0,60770.0,0.001632]
[1727978215293,0.64020318,60771.0,60770.0,0.001632]
[1727978215721,0.7631852,60771.0,60770.0,0.001632]
[1727978216181,0.64020318,60771.0,60770.0,0.001632]
[1727978216410,0.61440193,60771.0,60770.0,0.001632]
[1727978216659,0.80247466,60771.0,60770.0,0.001632]
[1727978216890,0.80047466,60771.0,60770.0,0.001632]
[1727978217335,0.63728795,60771.0,60770.0,0.001632]
[1727978218959,0.63928795,60771.0,60770.0,0.001632]
[1727978220570,0.63728795,60771.0,60770.0,0.001632]
[1727978221039,0.63928795,60771.0,60770.0,0.001632]
[1727978221521,0.002,60763.0,60761.0,0.001632]
[1727978221749,0.31190091,60762.0,60761.0,0.001632]
[1727978223441,0.33290091,60762.0,60761.0,0.001632]
[1727978223696,0.32190091,60762.0,60761.0,0.001632]
[1727978223936,0.4722601,60762.0,60761.0,0.001632]
[1727978224427,0.59564677,60762.0,60761.0,0.001632]
[1727978224896,0.57099595,60762.0,60761.0,0.001632]
[1727978225136,0.62144681,60762.0,60761.0,0.001632]
[1727978225380,0.72017945,60762.0,60761.0,0.001632]
[1727978225657,0.74483348,60762.0,60761.0,0.001632]
[1727978225917,0.72220287,60762.0,60761.0,0.001632]
[1727978226158,0.74783348,60762.0,60761.0,0.001632]
[1727978226397,0.62744681,60762.0,60761.0,0.001632]
[1727978226876,0.75091381,60762.0,60761.0,0.001632]
[1727978227110,0.76491381,60762.0,60761.0,0.001632]
[1727978227344,0.64144681,60762.0,60761.0,0.001632]
[1727978227825,0.62544681,60762.0,60761.0,0.001632]
[1727978228057,0.77364247,60762.0,60761.0,0.001632]
[1727978228295,0.64144681,60762.0,60761.0,0.001632]
[1727978229027,0.63944681,60762.0,60761.0,0.001632]
[1727978229492,0.64144681,60762.0,60761.0,0.001632]
[1727978229968,0.63944681,60762.0,60761.0,0.001632]
[1727978230212,0.64144681,60762.0,60761.0,0.001632]
[1727978232419,0.6156446,60762.0,60761.0,0.001632]
[1727978233376,0.166606,60751.0,60750.0,4e-05]
[1727978233618,0.31393091,60751.0,60750.0,4e-05]
[1727978233856,0.31193091,60751.0,60750.0,4e-05]
[1727978235047,0.33993091,60751.0,60750.0,4e-05]
[1727978235295,0.43997789,60751.0,60750.0,4e-05]
[1727978235541,0.72657941,60751.0,60750.0,4e-05]
[1727978235789,0.6171646,60751.0,60750.0,4e-05]
[1727978237006,0.43797789,60751.0,60750.0,4e-05]
[1727978237253,0.57535514,60751.0,60750.0,4e-05]
[1727978237503,0.55066144,60751.0,60750.0,4e-05]
[1727978237745,0.42598811,60751.0,60750.0,4e-05]
[1727978237977,0.30465298,60751.0,60750.0,4e-05]
[1727978238215,0.43714796,60751.0,60750.0,4e-05]
[1727978238443,0.164606,60751.0,60750.0,4e-05]
[1727978238676,0.178606,60751.0,60750.0,4e-05]
[1727978239154,0.192606,60751.0,60750.0,4e-05]
[1727978239636,0.178606,60751.0,60750.0,4e-05]
[1727978239877,0.285606,60751.0,60750.0,4e-05]
[1727978240121,0.32571855,60751.0,60750.0,4e-05]
[1727978240361,0.33771855,60751.0,60750.0,4e-05]
[1727978240803,0.33171855,60751.0,60750.0,4e-05]
[1727978241295,0.33971855,60751.0,60750.0,4e-05]
[1727978241520,0.33371855,60751.0,60750.0,4e-05]
[1727978241980,0.33571855,60751.0,60750.0,4e-05]
[1727978242229,0.32571855,60751.0,60750.0,4e-05]
[1727978242466,0.32671855,60751.0,60750.0,4e-05]
[1727978246311,0.43876553,60751.0,60750.0,4e-05]
[1727978246560,0.43876553,60751.0,60750.0,0.001676]
[1727978246799,0.62683826,60751.0,60750.0,0.001676]
[1727978247047,0.67420676,60751.0,60750.0,0.001676]
[1727978247532,0.70001562,60751.0,60750.0,0.001676]
[1727978247799,0.77486687,60751.0,60750.0,0.001676]
[1727978248043,0.83419692,60751.0,60750.0,0.001676]
[1727978248286,0.68520676,60751.0,60750.0,0.001676]
[1727978248720,0.84419692,60751.0,60750.0,0.001676]
[1727978248981,0.83319692,60751.0,60750.0,0.001676]
[1727978249227,0.92949692,60751.0,60750.0,0.001676]
[1727978249459,0.92949639,60751.0,60750.0,0.001676]
[1727978249720,0.91949639,60751.0,60750.0,0.001676]
[1727978250008,0.77150676,60751.0,60750.0,0.001676]
[1727978250261,0.93350159,60751.0,60750.0,0.001676]
[1727978250499,0.91950159,60751.0,60750.0,0.001676]
[1727978250744,0.93348027,60751.0,60750.0,0.001676]
[1727978250976,0.93348027,60751.0,60747.0,0.001636]
[1727978250977,0.266614,60748.0,60747.0,0.001636]
[1727978251204,0.002,60740.0,60739.0,0.001636]
[1727978251438,0.61561474,60740.0,60739.0,0.001636]
[1727978251680,0.71424664,60740.0,60739.0,0.001636]
[1727978252143,0.61361474,60740.0,60739.0,0.001636]
[1727978252340,0.62761474,60740.0,60739.0,0.001636]
[1727978252651,0.77880145,60740.0,60739.0,0.001636]
[1727978252888,0.79280145,60740.0,60739.0,0.001636]
[1727978253151,0.87450145,60740.0,60739.0,0.001636]
[1727978253604,0.87250145,60740.0,60739.0,0.001636]
[1727978253828,0.97308837,60740.0,60739.0,0.001636]
[1727978254300,0.96042609,60740.0,60739.0,0.001636]
[1727978254536,0.86472609,60740.0,60739.0,0.001636]
[1727978254737,0.77680145,60740.0,60739.0,0.001636]
[1727978254996,0.79280145,60740.0,60739.0,0.001636]
[1727978255228,0.88072609,60740.0,60739.0,0.001636]
[1727978255472,0.80680145,60740.0,60739.0,0.001636]
[1727978255703,0.88071439,60740.0,60739.0,0.001636]
[1727978256890,0.80480145,60740.0,60739.0,0.001636]
[1727978257829,0.80680145,60740.0,60739.0,0.001636]
[1727978259252,0.80480145,60740.0,60739.0,0.001636]
[1727978259471,0.78324587,60740.0,60739.0,0.001636]
[1727978259701,0.75743295,60740.0,60739.0,0.001636]
[1727978259935,0.8047285,60740.0,60739.0,0.001636]
[1727978260185,0.8067285,60740.0,60739.0,0.001636]
[1727978260917,0.99209216,60740.0,60739.0,0.001636]
[1727978261139,1.00609216,60740.0,60739.0,0.001636]
[1727978261619,0.9750285,60740.0,60739.0,0.001636]
[1727978262312,0.9470285,60740.0,60739.0,0.001636]
[1727978262811,1.00084353,60740.0,60739.0,0.001636]
[1727978263030,0.98684353,60740.0,60739.0,0.001636]
[1727978263484,1.00084353,60740.0,60739.0,0.001636]
[1727978264858,1.1239223,60740.0,60739.0,0.001636]
[1727978265078,1.0318223,60740.0,60739.0,0.001636]
[1727978265304,0.90874353,60740.0,60739.0,0.001636]
[1727978266230,0.8829285,60740.0,60739.0,0.001636]
[1727978266455,0.98138174,60740.0,60739.0,0.001636]
[1727978266904,1.00400727,60740.0,60739.0,0.001636]
[1727978267149,0.97938248,60740.0,60739.0,0.001636]
[1727978267380,0.98138248,60740.0,60739.0,0.001636]
[1727978268132,0.8829285,60740.0,60739.0,0.001636]
[1727978269518,0.90874294,60740.0,60739.0,0.001636]
[1727978270663,0.8829285,60740.0,60739.0,0.001636]
[1727978271350,0.98139993,60740.0,60739.0,0.001636]
[1727978271590,0.8829285,60740.0,60739.0,0.001636]
[1727978272108,1.00602246,60740.0,60739.0,0.001636]
[1727978272349,1.00602246,60740.0,60732.0,0.001636]
[1727978272350,0.002,60733.0,60732.0,0.001636]
[1727978272573,0.45275173,60724.0,60721.0,0.24668821]
[1727978273281,0.45275173,60724.0,60717.0,0.0806]
[1727978273517,0.45275173,60724.0,60714.0,0.0906]
[1727978273751,0.50201082,60724.0,60712.0,0.001634]
[1727978274210,0.61771734,60724.0,60712.0,0.001634]
[1727978274453,0.79190405,60724.0,60712.0,0.001634]
[1727978274711,0.60383132,60724.0,60712.0,0.001634]
[1727978274941,0.80190405,60724.0,60712.0,0.001634]
[1727978275186,0.46446537,60724.0,60721.0,0.24668821]
[1727978275430,0.6665381,60724.0,60721.0,0.41938821]
[1727978275677,0.59345825,60724.0,60721.0,0.0906]
[1727978275919,0.59345825,60724.0,60716.0,0.0821]
[1727978276148,0.56845825,60724.0,60716.0,0.0821]
[1727978276404,0.56845825,60724.0,60713.0,0.092236]
[1727978276624,0.63172003,60724.0,60713.0,0.092236]
[1727978276876,0.79490674,60724.0,60713.0,0.092236]
[1727978277101,0.80890674,60724.0,60713.0,0.092236]
[1727978277566,0.79490674,60724.0,60713.0,0.092236]
[1727978277764,0.80890674,60724.0,60713.0,0.092236]
[1727978278000,0.79490674,60724.0,60713.0,0.092236]
[1727978278240,0.80890674,60724.0,60713.0,0.092236]
[1727978278698,0.83472736,60724.0,60713.0,0.092236]
[1727978278924,0.83472736,60724.0,60713.0,0.001636]
[1727978279912,0.79490674,60724.0,60713.0,0.001636]
[1727978280151,0.79490674,60724.0,60720.0,1.61871272]
[1727978280152,0.269687,60721.0,60720.0,1.61871272]
[1727978280374,0.86781892,60721.0,60720.0,1.61871272]
[1727978280601,0.68781092,60721.0,60720.0,1.61871272]
[1727978281107,0.57066965,60721.0,60720.0,1.61871272]
[1727978281837,0.58466965,60721.0,60720.0,1.61871272]
[1727978282061,0.73385636,60721.0,60720.0,1.61871272]
[1727978282556,0.74785636,60721.0,60720.0,1.61871272]
[1727978282794,0.76185636,60721.0,60720.0,1.61871272]
[1727978283284,0.74785636,60721.0,60720.0,1.61871272]
[1727978283528,0.76185636,60721.0,60720.0,1.61871272]
[1727978284001,1.40698036,60721.0,60720.0,1.45402272]
[1727978284257,1.43280421,60721.0,60720.0,1.45402272]
[1727978284512,1.43280421,60721.0,60720.0,1.35735227]
[1727978284513,1.41880421,60721.0,60720.0,1.35735227]
[1727978284742,1.11356021,60721.0,60720.0,1.35735227]
[1727978285002,0.42242077,60721.0,60720.0,1.35735227]
[1727978285231,0.40842077,60721.0,60720.0,1.35735227]
[1727978285455,0.38259692,60721.0,60720.0,1.35735227]
[1727978285676,0.41059692,60721.0,60720.0,1.35735227]
[1727978285944,0.39659692,60721.0,60720.0,1.35735227]
[1727978286233,0.57378363,60721.0,60720.0,1.35735227]
[1727978286977,0.57178363,60721.0,60720.0,1.35735227]
[1727978287477,0.76185636,60721.0,60720.0,1.35735227]
[1727978287720,0.77585636,60721.0,60720.0,1.35735227]
[1727978288402,0.80167934,60721.0,60720.0,1.35735227]
[1727978288882,0.75967934,60721.0,60720.0,1.35735227]
[1727978289379,0.78767934,60721.0,60720.0,1.35735227]
[1727978289617,0.74785636,60721.0,60720.0,1.35735227]
[1727978289870,0.73385636,60721.0,60720.0,1.35735227]
[1727978290125,0.59666965,60721.0,60720.0,1.35735227]
[1727978290353,0.40859692,60721.0,60720.0,1.35735227]
[1727978290584,0.39459692,60721.0,60720.0,1.35735227]
[1727978290834,0.40859692,60721.0,60720.0,1.35735227]